fUST/lending_fUST_20250529
["ID","MTS","AMOUNT","RATE_DAILY","PERIOD"]
[362858183,1748494240232,-430.0,0.00021066,2]
[362858184,1748494240242,-430.0,0.00021066,2]
[362858185,1748494240253,-430.0,0.00021066,2]
[362858186,1748494240263,-430.0,0.00021066,2]
[362858187,1748494240272,-897.4,0.00021066,2]
[362858188,1748494240282,-430.0,0.00021066,2]
[362858189,1748494240292,-430.0,0.00021066,2]
[362858190,1748494240301,-430.0,0.00021066,2]
[362858191,1748494240310,-1500.0,0.00021068,2]
[362858192,1748494240320,-430.0,0.00021087,2]
[362858193,1748494240329,-273.55843738,0.00021107,4]
[362858194,1748494240339,-150.77982721,0.00021111,2]
[362858195,1748494240354,-700.0,0.00021164,2]
[362858196,1748494240371,-1000.0,0.000212,2]
[362858197,1748494240380,-1000.0,0.000212,3]
[362858198,1748494240389,-1717.93,0.00021263,2]
[362858199,1748494240399,-273.55843738,0.00021279,5]
[362858200,1748494240408,-1000.0,0.00021322,2]
[362858201,1748494240418,-430.0,0.00021337,2]
[362858202,1748494240428,-430.0,0.00021337,2]
[362858203,1748494240437,-443.23,0.00021337,2]
[362858204,1748494240446,-1738.56,0.00021337,2]
[362858205,1748494240456,-1891.53,0.00021338,2]
[362858206,1748494240547,-738.68,0.00021338,2]
[362858207,1748494240557,-2813.98,0.00021338,2]
[362858208,1748494240567,-430.0,0.00021338,2]
[362858209,1748494240576,-1157.71,0.00021338,2]
[362858210,1748494240586,-1197.27,0.00021338,2]
[362858211,1748494240595,-430.0,0.00021338,2]
[362858212,1748494240604,-430.0,0.00021338,2]
[362858213,1748494240614,-430.0,0.00021338,2]
[362858214,1748494240623,-430.0,0.00021338,2]
[362858215,1748494240633,-430.0,0.00021338,2]
[362858216,1748494240647,-430.0,0.00021338,2]
[362858217,1748494240656,-430.0,0.00021338,2]
[362858218,1748494240666,-430.0,0.00021338,2]
[362858219,1748494240675,-430.0,0.00021338,2]
[362858220,1748494240685,-430.0,0.00021338,2]
[362858221,1748494240694,-430.0,0.00021338,2]
[362858222,1748494240704,-430.0,0.00021339,2]
[362858223,1748494240714,-242.78,0.00021339,2]
[362858224,1748494240724,-430.0,0.00021339,2]
[362858225,1748494240734,-427.41324943,0.00021339,2]
[362858226,1748494240744,-430.0,0.00021339,2]
[362858227,1748494240755,-981.46,0.00021339,2]
[362858228,1748494240764,-430.0,0.00021339,2]
[362858229,1748494240773,-430.0,0.00021339,2]
[362858230,1748494240783,-430.0,0.00021339,2]
[362858231,1748494240792,-606.31,0.00021339,2]
[362858232,1748494240802,-430.0,0.00021339,2]
[362858233,1748494240811,-430.0,0.00021339,2]
[362858234,1748494240821,-430.0,0.00021339,2]
[362858235,1748494240831,-430.38,0.00021339,2]
[362858236,1748494240842,-470.09,0.00021339,2]
[362858237,1748494240852,-430.0,0.00021339,2]
[362858238,1748494240862,-607.17,0.00021339,2]
[362858239,1748494240871,-1824.96,0.00021339,2]
[362858240,1748494240881,-1243.86,0.00021339,2]
[362858241,1748494240891,-430.0,0.00021339,2]
[362858242,1748494240900,-228.43,0.0002134,2]
[362858243,1748494240910,-430.0,0.0002134,2]
[362858244,1748494240920,-480.71021645,0.0002134,2]
[362858245,1748494240929,-430.0,0.0002134,2]
[362858246,1748494240938,-430.0,0.0002134,2]
[362858247,1748494240948,-430.0,0.0002134,2]
[362858248,1748494240957,-430.0,0.0002134,2]
[362858249,1748494240966,-897.4,0.0002134,2]
[362858250,1748494240976,-395.86775219,0.0002134,2]
[362858251,1748494240985,-430.0,0.0002134,2]
[362858252,1748494240995,-430.0,0.00021361,2]
[362858253,1748494241007,-273.55843738,0.00021452,5]
[362858254,1748494241016,-150.77982721,0.00021524,2]
[362858255,1748494241026,-500.0,0.00021538,2]
[362858256,1748494241035,-982.24062193,0.00021548,2]
[362858257,1748494241142,-1017.75937807,0.00021548,2]
[362858258,1748494241152,-97.75832368,0.00021565,2]
[362858259,1748494241395,-430.0,0.00019967,2]
[362858260,1748494241404,-430.0,0.00019969,2]
[362858261,1748494241414,-430.0,0.00020241,2]
[362858262,1748494241424,-430.0,0.00020243,2]
[362858263,1748494241434,-430.0,0.00020515,2]
[362858264,1748494241444,-285.48,0.00020789,2]
[362858265,1748494241455,-430.0,0.00021339,2]
[362858266,1748494241465,-402.24167632,0.00021565,2]
[362858267,1748494241474,-500.0,0.00021593,2]
[362858268,1748494241483,-430.0,0.00021611,2]
[362858269,1748494241493,-430.0,0.00021611,2]
[362858270,1748494241508,-443.23,0.00021611,2]
[362858271,1748494241518,-1738.56,0.00021611,2]
[362858272,1748494241528,-738.68,0.00021612,2]
[362858273,1748494241537,-2813.98,0.00021612,2]
[362858274,1748494241545,-430.0,0.00021612,2]
[362858275,1748494241551,-1157.71,0.00021612,2]
[362858276,1748494241559,-1197.27,0.00021612,2]
[362858277,1748494241568,-430.0,0.00021612,2]
[362858278,1748494241577,-430.0,0.00021612,2]
[362858279,1748494241587,-430.0,0.00021612,2]
[362858280,1748494241596,-430.0,0.00021612,2]
[362858281,1748494241605,-430.0,0.00021612,2]
[362858282,1748494241615,-430.0,0.00021612,2]
[362858283,1748494241624,-430.0,0.00021612,2]
[362858284,1748494241635,-430.0,0.00021612,2]
[362858285,1748494241648,-430.0,0.00021612,2]
[362858286,1748494241658,-430.0,0.00021612,2]
[362858287,1748494241667,-430.0,0.00021612,2]
[362858288,1748494241680,-430.0,0.00021613,2]
[362858289,1748494241690,-430.0,0.00021613,2]
[362858290,1748494241699,-430.0,0.00021613,2]
[362858291,1748494241708,-981.46,0.00021613,2]
[362858292,1748494241719,-430.0,0.00021613,2]
[362858293,1748494241728,-430.0,0.00021613,2]
[362858294,1748494241738,-338.38,0.00021613,2]
[362858295,1748494241747,-606.31,0.00021613,2]
[362858296,1748494241759,-430.0,0.00021613,2]
[362858297,1748494241769,-430.0,0.00021613,2]
[362858298,1748494241779,-430.0,0.00021613,2]
[362858299,1748494241788,-430.38,0.00021613,2]
[362858300,1748494241797,-470.09,0.00021613,2]
[362858301,1748494241807,-430.0,0.00021613,2]
[362858302,1748494241816,-607.17,0.00021613,2]
[362858303,1748494241826,-1824.96,0.00021613,2]
[362858304,1748494241836,-1243.86,0.00021613,2]
[362858305,1748494241845,-430.0,0.00021613,2]
[362858306,1748494241855,-430.0,0.00021613,2]
[362858307,1748494241864,-430.0,0.00021614,2]
[362858308,1748494241873,-430.0,0.00021614,2]
[362858309,1748494241883,-430.0,0.00021614,2]
[362858310,1748494241892,-430.0,0.00021614,2]
[362858311,1748494241902,-430.0,0.00021614,2]
[362858312,1748494241911,-897.4,0.00021614,2]
[362858313,1748494241921,-430.0,0.00021614,2]
[362858314,1748494241929,-1235.72850541,0.00021616,2]
[362858315,1748494241942,-764.27149459,0.00021616,2]
[362858316,1748494241951,-500.0,0.0002162,2]
[362858317,1748494241960,-273.55843738,0.00021624,5]
[362858318,1748494241969,-500.0,0.00021648,2]
[362858319,1748494241979,-500.0,0.00021675,2]
[362858320,1748494241988,-500.0,0.00021702,2]
[362858321,1748494241997,-176.3696131,0.00021726,2]
[362858322,1748494242008,-153.0,0.00021726,2]
[362858323,1748494242016,-162.1868876,0.00021726,2]
[362858324,1748494242025,-572.078714,0.00021726,2]
[362858325,1748494242034,-153.0,0.00021726,2]
[362858326,1748494242044,-160.8566137,0.00021726,2]
[362858327,1748494242053,-176.3696131,0.00021726,2]
[362858328,1748494242062,-153.0,0.00021726,2]
[362858329,1748494242071,-347.7459508,0.00021726,2]
[362858330,1748494242081,-153.0,0.00021726,2]
[362858331,1748494242090,-176.3696131,0.00021726,2]
[362858332,1748494242100,-572.078714,0.00021726,2]
[362858333,1748494242109,-572.078714,0.00021726,2]
[362858334,1748494242119,-176.3696131,0.00021726,2]
[362858335,1748494242128,-179.9240683,0.00021726,2]
[362858336,1748494242137,-571.66076,0.00021726,2]
[362858337,1748494242147,-500.0,0.0002173,2]
[362858338,1748494242157,-300.0,0.00021742,2]
[362858339,1748494242166,-420.0,0.00021743,2]
[362858340,1748494242176,-2385.30411913,0.00021744,2]
[362858341,1748494242188,-614.69588087,0.00021744,2]
[362858342,1748494242197,-506.15406445,0.00021757,2]
[362858343,1748494242207,-273.55843738,0.00021797,6]
[362858345,1748494242310,-4728.92862086,0.000218,4]
[362858346,1748494242323,-2585.27689043,0.000218,4]
[362858347,1748494242335,-5389.53550665,0.000218,4]
[362858348,1748494242345,-1012.69216355,0.0002181,7]
[362858349,1748494242357,-685.88,0.0002181,7]
[362858350,1748494242370,-3225.77660102,0.0002181,7]
[362858351,1748494242380,-430.0,0.00021885,2]
[362858352,1748494242390,-430.0,0.00021885,2]
[362858353,1748494242400,-443.23,0.00021885,2]
[362858354,1748494242410,-1738.56,0.00021885,2]
[362858355,1748494242421,-738.68,0.00021886,2]
[362858356,1748494242431,-2813.98,0.00021886,2]
[362858357,1748494242442,-430.0,0.00021886,2]
[362858358,1748494242452,-1157.71,0.00021886,2]
[362858359,1748494242462,-1197.27,0.00021886,2]
[362858360,1748494242472,-430.0,0.00021886,2]
[362858361,1748494242481,-430.0,0.00021886,2]
[362858362,1748494242491,-430.0,0.00021886,2]
[362858363,1748494242502,-430.0,0.00021886,2]
[362858364,1748494242511,-430.0,0.00021886,2]
[362858365,1748494242521,-430.0,0.00021886,2]
[362858366,1748494242530,-430.0,0.00021886,2]
[362858367,1748494242539,-430.0,0.00021886,2]
[362858368,1748494242549,-430.0,0.00021886,2]
[362858369,1748494242558,-430.0,0.00021886,2]
[362858370,1748494242568,-430.0,0.00021886,2]
[362858371,1748494242578,-430.0,0.00021887,2]
[362858372,1748494242588,-430.0,0.00021887,2]
[362858373,1748494242598,-578.94,0.00021887,2]
[362858374,1748494242609,-981.46,0.00021887,2]
[362858375,1748494242620,-430.0,0.00021887,2]
[362858376,1748494242631,-430.0,0.00021887,2]
[362858377,1748494242644,-606.31,0.00021887,2]
[362858378,1748494242654,-430.0,0.00021887,2]
[362858379,1748494242663,-312.29319434,0.00021887,2]
[362858380,1748494242674,-236.2,0.00021887,2]
[362858381,1748494242684,-430.38,0.00021887,2]
[362858382,1748494242694,-470.09,0.00021887,2]
[362858383,1748494242703,-430.0,0.00021887,2]
[362858384,1748494242713,-607.17,0.00021887,2]
[362858385,1748494242724,-1824.96,0.00021887,2]
[362858386,1748494242733,-1243.86,0.00021887,2]
[362858387,1748494242743,-430.0,0.00021887,2]
[362858388,1748494242755,-368.39913559,0.00021888,2]
[362858389,1748494242765,-430.0,0.00021888,2]
[362858390,1748494242774,-430.0,0.00021888,2]
[362858391,1748494242785,-430.0,0.00021888,2]
[362858393,1748494242794,-562.3,0.00021888,2]
[362858394,1748494242803,-897.4,0.00021888,2]
[362858395,1748494242812,-430.0,0.00021888,2]
[362858396,1748494242822,-160.0,0.0002191,2]
[362858397,1748494242831,-500.0,0.00021917,2]
[362858398,1748494242841,-500.0,0.00021917,2]
[362858399,1748494242850,-402.66404903,0.00021917,2]
[362858400,1748494242859,-2000.0,0.00021948,2]
[362858401,1748494242869,-273.55843738,0.00021969,6]
[362858402,1748494242878,-500.0,0.00021973,2]
[362858403,1748494242887,-500.0,0.00021973,2]
[362858404,1748494242897,-500.0,0.00021973,2]
[362858405,1748494242907,-500.47193221,0.00021973,2]
[362858406,1748494242917,-500.0,0.00021973,2]
[362858407,1748494242926,-500.0,0.00021973,2]
[362858408,1748494242935,-500.0,0.00021973,2]
[362858409,1748494242944,-500.951296,0.00021973,2]
[362858410,1748494242954,-500.0,0.00021973,2]
[362858411,1748494242963,-528.85647862,0.00021973,2]
[362858412,1748494242973,-502.26417517,0.00021973,2]
[362858413,1748494242982,-500.0,0.00021973,2]
[362858414,1748494242991,-500.0,0.00021973,2]
[362858415,1748494243002,-502.70993449,0.00021973,2]
[362858416,1748494243011,-500.0,0.00021973,2]
[362858417,1748494243020,-500.0,0.00021973,2]
[362858418,1748494243029,-600.0,0.00021973,2]
[362858419,1748494243038,-501.64564373,0.00021973,2]
[362858420,1748494243047,-500.0,0.00021973,2]
[362858421,1748494243056,-500.0,0.00021973,2]
[362858422,1748494243066,-500.0,0.00021973,2]
[362858423,1748494243075,-503.15297277,0.00021973,2]
[362858424,1748494243084,-500.0,0.00021973,2]
[362858425,1748494243093,-500.0,0.00021973,2]
[362858426,1748494243103,-500.0,0.00021973,2]
[362858427,1748494243112,-500.2658825,0.00021973,2]
[362858428,1748494243121,-500.0,0.00021973,2]
[362858429,1748494243130,-500.0,0.00021973,2]
[362858430,1748494243140,-500.0,0.00021973,2]
[362858431,1748494243149,-250.0,0.0002199,2]
[362858432,1748494243159,-1437.52404599,0.00022,2]
[362858433,1748494243177,-500.0,0.00022,2]
[362858434,1748494243191,-5068.92,0.00022,7]
[362858435,1748494243203,-100242.02,0.00022,7]
[362858436,1748494243218,-3094.72,0.00022,7]
[362858437,1748494243231,-1326.78,0.00022,2]
[362858438,1748494243246,-6776.73,0.00022,2]
[362858439,1748494243263,-151.0,0.00022,7]
[362858440,1748494243276,-151.0,0.00022,7]
[362858441,1748494243290,-156.294207,0.00022,7]
[362858442,1748494243300,-151.0,0.00022,7]
[362858443,1748494243315,-153.949415,0.00022,7]
[362858444,1748494243328,-316.144279,0.00022,7]
[362858445,1748494243342,-316.144279,0.00022,7]
[362858446,1748494243356,-151.0,0.00022,7]
[362858447,1748494243370,-151.0,0.00022,7]
[362858448,1748494243383,-151.0,0.00022,7]
[362858449,1748494243395,-151.0,0.00022,7]
[362858450,1748494243410,-151.0,0.00022,7]
[362858451,1748494243425,-151.0,0.00022,7]
[362858452,1748494243438,-153.449984,0.00022,7]
[362858453,1748494243450,-151.0,0.00022,7]
[362858454,1748494243463,-271.360748,0.00022,7]
[362858455,1748494243477,-2000.0,0.00022,2]
[362858456,1748494243491,-151.0,0.00022,7]
[362858457,1748494243505,-151.0,0.00022,7]
[362858458,1748494243517,-151.0,0.00022,7]
[362858459,1748494243528,-151.0,0.00022,7]
[362858460,1748494243541,-151.0,0.00022,7]
[362858461,1748494243557,-151.0,0.00022,7]
[362858462,1748494243568,-151.0,0.00022,7]
[362858463,1748494243579,-151.0,0.00022,7]
[362858464,1748494243591,-151.403076,0.00022,7]
[362858465,1748494243605,-151.0,0.00022,7]
[362858466,1748494243615,-154.0,0.00022,2]
[362858467,1748494243626,-1000.0,0.00022089,2]
[362858468,1748494243639,-500.0,0.00022121,2]
[362858469,1748494243651,-273.55843738,0.00022141,6]
[362858470,1748494243663,-546.52032308,0.00022159,2]
[362858471,1748494243675,-430.0,0.00022159,2]
[362858472,1748494243687,-443.23,0.00022159,2]
[362858473,1748494243699,-1738.56,0.00022159,2]
[362858474,1748494243711,-738.68,0.0002216,2]
[362858475,1748494243723,-2813.98,0.0002216,2]
[362858476,1748494243734,-430.0,0.0002216,2]
[362858477,1748494243746,-1157.71,0.0002216,2]
[362858478,1748494243760,-1197.27,0.0002216,2]
[362858479,1748494243772,-430.0,0.0002216,2]
[362858480,1748494243783,-430.0,0.0002216,2]
[362858481,1748494243795,-430.0,0.0002216,2]
[362858482,1748494243807,-430.0,0.0002216,2]
[362858483,1748494243819,-430.0,0.0002216,2]
[362858484,1748494243831,-430.0,0.0002216,2]
[362858485,1748494243844,-430.0,0.0002216,2]
[362858486,1748494243856,-430.0,0.0002216,2]
[362858487,1748494243868,-430.0,0.0002216,2]
[362858488,1748494243880,-430.0,0.0002216,2]
[362858489,1748494243892,-430.0,0.0002216,2]
[362858490,1748494243904,-563.96,0.00022161,2]
[362858491,1748494243916,-430.0,0.00022161,2]
[362858492,1748494243928,-981.46,0.00022161,2]
[362858493,1748494243940,-430.0,0.00022161,2]
[362858494,1748494243951,-430.0,0.00022161,2]
[362858495,1748494243962,-606.31,0.00022161,2]
[362858496,1748494243973,-430.0,0.00022161,2]
[362858497,1748494243982,-430.38,0.00022161,2]
[362858498,1748494243992,-470.09,0.00022161,2]
[362858499,1748494244003,-430.0,0.00022161,2]
[362858500,1748494244013,-607.17,0.00022161,2]
[362858501,1748494244022,-1824.96,0.00022161,2]
[362858502,1748494244033,-1243.86,0.00022161,2]
[362858503,1748494244043,-430.0,0.00022161,2]
[362858504,1748494244053,-430.0,0.00022162,2]
[362858505,1748494244063,-430.0,0.00022162,2]
[362858506,1748494244073,-430.0,0.00022162,2]
[362858507,1748494244083,-897.4,0.00022162,2]
[362858508,1748494244093,-430.0,0.00022162,2]
[362858509,1748494244102,-2500.0,0.00022164,2]
[362858510,1748494244112,-154.0,0.00022192,7]
[362858511,1748494244122,-700.0,0.0002226,2]
[362858512,1748494244132,-273.55843738,0.00022314,7]
[362858513,1748494244143,-4000.0,0.00022346,2]
[362858514,1748494244152,-430.0,0.00022433,2]
[362858515,1748494244162,-443.23,0.00022433,2]
[362858516,1748494244172,-1738.56,0.00022433,2]
[362858517,1748494244182,-738.68,0.00022434,2]
[362858518,1748494244361,-2813.98,0.00022434,2]
[362858519,1748494244379,-430.0,0.00022434,2]
[362858520,1748494244391,-1157.71,0.00022434,2]
[362858521,1748494244400,-1197.27,0.00022434,2]
[362858522,1748494244410,-430.0,0.00022434,2]
[362858523,1748494244420,-430.0,0.00022434,2]
[362858524,1748494244429,-430.0,0.00022434,2]
[362858525,1748494244438,-430.0,0.00022434,2]
[362858526,1748494244447,-430.0,0.00022434,2]
[362858527,1748494244456,-430.0,0.00022434,2]
[362858528,1748494244465,-430.0,0.00022434,2]
[362858529,1748494244475,-430.0,0.00022434,2]
[362858530,1748494244484,-430.0,0.00022434,2]
[362858531,1748494244493,-430.0,0.00022434,2]
[362858532,1748494244502,-430.0,0.00022434,2]
[362858533,1748494244511,-152.648992,0.00022435,7]
[362858534,1748494244520,-151.0,0.00022435,7]
[362858535,1748494244530,-151.0,0.00022435,7]
[362858536,1748494244539,-151.0,0.00022435,7]
[362858537,1748494244548,-928.51837,0.00022435,7]
[362858538,1748494244557,-928.51837,0.00022435,7]
[362858539,1748494244566,-199.743154,0.00022435,7]
[362858540,1748494244576,-151.0,0.00022435,7]
[362858541,1748494244585,-151.0,0.00022435,7]
[362858542,1748494244594,-151.0,0.00022435,7]
[362858543,1748494244603,-151.0,0.00022435,7]
[362858544,1748494244613,-151.632448,0.00022435,7]
[362858545,1748494244622,-295.280957,0.00022435,7]
[362858546,1748494244632,-295.280957,0.00022435,7]
[362858547,1748494244642,-151.0,0.00022435,7]
[362858548,1748494244651,-934.315796,0.00022435,7]
[362858549,1748494244660,-934.315796,0.00022435,7]
[362858550,1748494244669,-430.0,0.00022435,2]
[362858551,1748494244679,-530.593879,0.00022435,7]
[362858552,1748494244688,-530.593879,0.00022435,7]
[362858553,1748494244698,-981.46,0.00022435,2]
[362858554,1748494244707,-430.0,0.00022435,2]
[362858555,1748494244717,-430.0,0.00022435,2]
[362858556,1748494244728,-606.31,0.00022435,2]
[362858557,1748494244737,-430.0,0.00022435,2]
[362858558,1748494244748,-430.38,0.00022435,2]
[362858560,1748494244759,-470.09,0.00022435,2]
[362858561,1748494244768,-430.0,0.00022435,2]
[362858562,1748494244778,-607.17,0.00022435,2]
[362858563,1748494244787,-1824.96,0.00022435,2]
[362858564,1748494244796,-1243.86,0.00022435,2]
[362858565,1748494244806,-430.0,0.00022435,2]
[362858566,1748494244816,-430.0,0.00022436,2]
[362858568,1748494244825,-430.0,0.00022436,2]
[362858569,1748494244834,-430.0,0.00022436,2]
[362858571,1748494244843,-897.4,0.00022436,2]
[362858572,1748494244852,-430.0,0.00022436,2]
[362858573,1748494244862,-151.0,0.00022437,7]
[362858574,1748494244871,-500.0,0.00022465,2]
[362858575,1748494244880,-273.55843738,0.00022486,7]
[362858577,1748494244889,-1000.0,0.00022521,2]
[362858579,1748494244898,-1000.0,0.00022521,2]
[362858581,1748494244907,-502.32818901,0.00022521,2]
[362858583,1748494244916,-1069.42552681,0.00022521,2]
[362858584,1748494244925,-500.0,0.00022521,2]
[362858586,1748494244935,-1000.0,0.00022521,2]
[362858587,1748494244944,-1000.0,0.00022521,2]
[362858588,1748494244953,-1001.13035194,0.00022521,2]
[362858589,1748494244962,-1036.63508491,0.00022521,2]
[362858590,1748494244971,-1200.0,0.00022521,2]
[362858591,1748494244980,-1000.0,0.00022521,2]
[362858592,1748494244990,-501.06523105,0.00022521,2]
[362858593,1748494244999,-1004.32502589,0.00022521,2]
[362858594,1748494245009,-1000.0,0.00022521,2]
[362858595,1748494245019,-1000.0,0.00022521,2]
[362858597,1748494245028,-1000.0,0.00022521,2]
[362858599,1748494245038,-1000.0,0.00022521,2]
[362858600,1748494245047,-1000.0,0.00022521,2]
[362858601,1748494245056,-1000.0,0.00022521,2]
[362858602,1748494245065,-153.0,0.00022548,2]
[362858603,1748494245075,-153.0,0.00022548,2]
[362858604,1748494245084,-176.3696131,0.00022548,2]
[362858605,1748494245093,-153.0,0.00022548,2]
[362858606,1748494245103,-153.0,0.00022548,2]
[362858608,1748494245112,-176.3696131,0.00022548,2]
[362858609,1748494245121,-572.078714,0.00022548,2]
[362858610,1748494245130,-153.0,0.00022548,2]
[362858611,1748494245139,-153.0,0.00022548,2]
[362858612,1748494245149,-176.3696131,0.00022548,2]
[362858614,1748494245158,-153.0,0.00022548,2]
[362858616,1748494245167,-4079.51,0.00022548,2]
[362858618,1748494245176,-178.290766,0.00022603,2]
[362858619,1748494245185,-273.55843738,0.00022659,7]
[362858621,1748494245194,-544.94703601,0.00022669,2]
[362858623,1748494245204,-430.0,0.00022707,2]
[362858624,1748494245213,-443.23,0.00022707,2]
[362858626,1748494245223,-1738.56,0.00022707,2]
[362858628,1748494245232,-738.68,0.00022708,2]
[362858630,1748494245242,-2813.98,0.00022708,2]
[362858632,1748494245251,-517.25310008,0.00022708,2]
[362858634,1748494245261,-1157.71,0.00022708,2]
[362858636,1748494245270,-1197.27,0.00022708,2]
[362858638,1748494245280,-430.0,0.00022708,2]
[362858640,1748494245289,-430.0,0.00022708,2]
[362858642,1748494245298,-430.0,0.00022708,2]
[362858644,1748494245307,-430.0,0.00022708,2]
[362858646,1748494245316,-430.0,0.00022708,2]
[362858649,1748494245325,-530.37209193,0.00022708,2]
[362858652,1748494245335,-430.0,0.00022708,2]
[362858655,1748494245344,-430.0,0.00022708,2]
[362858658,1748494245353,-430.0,0.00022708,2]
[362858661,1748494245362,-430.0,0.00022708,2]
[362858664,1748494245371,-430.0,0.00022708,2]
[362858666,1748494245381,-430.0,0.00022709,2]
[362858670,1748494245390,-981.46,0.00022709,2]
[362858674,1748494245399,-430.0,0.00022709,2]
[362858678,1748494245408,-430.0,0.00022709,2]
[362858682,1748494245418,-606.31,0.00022709,2]
[362858686,1748494245427,-430.0,0.00022709,2]
[362858690,1748494245436,-430.38,0.00022709,2]
[362858693,1748494245445,-470.09,0.00022709,2]
[362858696,1748494245455,-430.0,0.00022709,2]
[362858699,1748494245465,-607.17,0.00022709,2]
[362858702,1748494245474,-1824.96,0.00022709,2]
[362858704,1748494245483,-1243.86,0.00022709,2]
[362858707,1748494245495,-430.0,0.00022709,2]
[362858711,1748494245505,-430.0,0.0002271,2]
[362858714,1748494245515,-169.33827869,0.0002271,2]
[362858717,1748494245524,-430.0,0.0002271,2]
[362858720,1748494245533,-897.4,0.0002271,2]
[362858721,1748494245542,-430.0,0.0002271,2]
[362858724,1748494245552,-381.08268529,0.00022712,2]
[362858725,1748494245561,-961.0,0.00022715,2]
[362858727,1748494245570,-711.108,0.00022715,2]
[362858729,1748494245579,-2228.0,0.00022715,2]
[362858731,1748494245589,-405.0,0.00022715,2]
[362858733,1748494245598,-2017.01158522,0.00022783,2]
[362858735,1748494245607,-331.6012484,0.00022981,2]
[362858737,1748494245617,-443.23,0.00022981,2]
[362858739,1748494245626,-1738.56,0.00022981,2]
[362858741,1748494245636,-738.68,0.00022982,2]
[362858743,1748494245648,-2813.98,0.00022982,2]
[362858745,1748494245657,-1157.71,0.00022982,2]
[362858747,1748494245666,-1197.27,0.00022982,2]
[362858749,1748494245675,-430.0,0.00022982,2]
[362858751,1748494245685,-430.0,0.00022982,2]
[362858753,1748494245694,-430.0,0.00022982,2]
[362858755,1748494245703,-430.0,0.00022982,2]
[362858757,1748494245714,-430.0,0.00022982,2]
[362858759,1748494245723,-430.0,0.00022982,2]
[362858761,1748494245732,-430.0,0.00022982,2]
[362858763,1748494245741,-430.0,0.00022982,2]
[362858765,1748494245752,-430.0,0.00022982,2]
[362858767,1748494245761,-430.0,0.00022982,2]
[362858769,1748494245771,-981.46,0.00022983,2]
[362858771,1748494245780,-430.0,0.00022983,2]
[362858773,1748494245788,-151.0,0.00022983,7]
[362858776,1748494245797,-430.0,0.00022983,2]
[362858779,1748494245807,-151.0,0.00022983,7]
[362858782,1748494245815,-151.0,0.00022983,7]
[362858785,1748494245825,-151.0,0.00022983,7]
[362858787,1748494245834,-606.31,0.00022983,2]
[362858789,1748494245842,-430.0,0.00022983,2]
[362858791,1748494245851,-430.38,0.00022983,2]
[362858793,1748494245861,-151.0,0.00022983,7]
[362858795,1748494245870,-470.09,0.00022983,2]
[362858797,1748494245880,-430.0,0.00022983,2]
[362858800,1748494245890,-607.17,0.00022983,2]
[362858801,1748494245899,-151.0,0.00022983,7]
[362858803,1748494245908,-151.0,0.00022983,7]
[362858805,1748494245918,-1824.96,0.00022983,2]
[362858807,1748494245927,-1243.86,0.00022983,2]